bitfinex/quotes_SOLUSD_20250520
["timestamp","ask_amount","ask_price","bid_price","bid_amount"]
[1747732579536,20.86935781,167.71,167.67,43.88]
[1747732580038,5.96267366,167.71,167.67,43.88]
[1747732580434,5.96267366,167.71,167.67,26.0]
[1747732580629,5.96267366,167.71,167.68,17.88]
[1747732581020,20.86639298,167.74,167.68,17.88]
[1747732584311,20.86639298,167.74,167.69,18.64964886]
[1747732585636,14.90478574,167.74,167.69,18.64964886]
[1747732586925,14.90478574,167.74,167.7,3.38322839]
[1747732588160,14.90478574,167.74,167.69,18.64964886]
[1747732590953,14.90478574,167.74,167.7,3.38660213]
[1747732591537,27.4380388,167.74,167.7,3.38660213]
[1747732592425,14.90478574,167.74,167.7,3.38660213]
[1747732592645,14.90478574,167.74,167.69,17.88]
[1747732593458,20.86639298,167.74,167.69,17.88]
[1747732595636,14.90478574,167.74,167.7,3.38932007]
[1747732596729,5.96125186,167.75,167.7,3.38932007]
[1747732597245,5.96125186,167.75,167.71,3.38932007]
[1747732597859,5.96089651,167.76,167.71,3.38932007]
[1747732598356,20.8631378,167.76,167.7,3.38932007]
[1747732599253,33.39639086,167.76,167.7,3.38932007]
[1747732599649,20.8631378,167.76,167.7,3.38932007]
[1747732607359,0.28432314,167.75,167.7,3.38932007]
[1747732607563,0.28432314,167.75,167.71,17.88]
[1747732608535,12.53325306,167.73,167.69,17.88]
[1747732608857,12.8175762,167.71,167.68,3.38932007]
[1747732609044,5.96302921,167.7,167.68,3.38932007]
[1747732609363,5.96302921,167.7,167.67,3.38932007]
[1747732609859,20.87060225,167.7,167.67,3.38932007]
[1747732610437,20.87060225,167.7,167.65,17.88]
[1747732611664,20.87060225,167.7,167.66,3.38932007]
[1747732612158,0.28432314,167.69,167.66,3.38932007]
[1747732612463,12.8175762,167.69,167.66,3.38932007]
[1747732613062,12.8175762,167.69,167.64,17.88]
[1747732613063,12.8175762,167.69,167.65,3.38932007]
[1747732613246,20.87309159,167.68,167.65,3.38932007]
[1747732614339,20.87309159,167.68,167.64,3.38932007]
[1747732615345,14.90935114,167.68,167.64,3.38932007]
[1747732619267,12.8175762,167.67,167.64,3.38932007]
[1747732619453,0.28432314,167.65,167.64,3.38932007]
[1747732619848,12.8175762,167.65,167.64,3.38932007]
[1747732620451,38.8175762,167.65,167.58,3.38932007]
[1747732620657,0.28432314,167.59,167.58,3.38932007]
[1747732621255,12.8175762,167.59,167.58,3.38932007]
[1747732621482,18.78451933,167.59,167.55,9.1228943]
[1747732621771,18.78451933,167.59,167.53,54.99298165]
[1747732621772,0.28432314,167.55,167.52,17.88]
[1747732622294,12.8175762,167.55,167.52,17.88]
[1747732623569,5.96872388,167.54,167.52,17.88]
[1747732624480,5.96872388,167.54,167.5,17.88]
[1747732625998,27.45383173,167.56,167.5,23.85005822]
[1747732625999,5.9683565,167.56,167.5,23.85005822]
[1747732626155,5.9683565,167.56,167.5,17.88]
[1747732628780,5.96772222,167.57,167.51,44.64964886]
[1747732629181,5.96734854,167.58,167.51,44.64964886]
[1747732629362,14.91532205,167.62,167.51,44.64964886]
[1747732629558,20.88119724,167.62,167.52,5.96943648]
[1747732629880,20.88119724,167.62,167.55,26.0]
[1747732630077,20.88119724,167.62,167.56,17.88]
[1747732630476,33.4144503,167.62,167.56,17.88]
[1747732632583,0.28432314,167.61,167.56,17.88]
[1747732633386,5.96658711,167.6,167.56,17.88]
[1747732634687,20.88305489,167.6,167.56,17.88]
[1747732634864,12.8175762,167.59,167.56,17.88]
[1747732635885,5.9672992,167.58,167.56,17.88]
[1747732636113,5.9672992,167.58,167.48,18.64964886]
[1747732636114,12.8175762,167.57,167.48,18.64964886]
[1747732636295,0.28432314,167.57,167.52,17.88]
[1747732636463,0.28432314,167.55,167.52,17.88]
[1747732637164,0.28432314,167.55,167.51,26.0]
[1747732637586,0.28432314,167.55,167.5,17.88]
[1747732637887,12.8175762,167.55,167.5,17.88]
[1747732638063,20.89053359,167.54,167.48,63.52964886]
[1747732638259,20.89053359,167.54,167.49,17.88]
[1747732639677,20.89053359,167.54,167.48,18.88]
[1747732639678,0.28432314,167.53,167.48,18.88]
[1747732639866,0.28432314,167.53,167.49,17.88]
[1747732640071,20.89302769,167.52,167.49,17.88]
[1747732644393,5.96943648,167.52,167.49,17.88]
[1747732644594,5.96872388,167.54,167.5,18.64964886]
[1747732644809,5.9676553,167.57,167.5,18.64964886]
[1747732645682,14.9162956,167.61,167.54,18.64964886]
[1747732645886,14.9162956,167.61,167.55,17.9]
[1747732646390,14.9162956,167.61,167.55,19.4992]
[1747732646699,5.96587519,167.62,167.56,44.64964886]
[1747732649780,20.88056317,167.62,167.56,26.0]
[1747732649980,12.8175762,167.61,167.56,26.0]
[1747732650380,20.88305489,167.6,167.56,26.0]
[1747732650781,20.88305489,167.6,167.57,17.9]
[1747732651682,20.88305489,167.6,167.56,26.0]
[1747732651683,20.88305489,167.6,167.54,18.64964886]
[1747732651880,0.28432314,167.59,167.55,17.9]
[1747732652086,12.8175762,167.59,167.56,17.9]
[1747732652287,5.9672992,167.58,167.56,17.9]
[1747732652497,5.96587519,167.62,167.56,36.54964886]
[1747732653388,20.88056317,167.62,167.56,36.54964886]
[1747732654592,14.91468798,167.62,167.56,36.54964886]
[1747732658709,20.88056317,167.62,167.56,36.54964886]
[1747732659405,20.88056317,167.62,167.56,17.9]
[1747732662521,14.91468798,167.62,167.56,17.9]
[1747732662699,0.28432314,167.61,167.57,17.88]
[1747732664312,20.88305489,167.6,167.57,17.88]
[1747732664498,0.28432314,167.59,167.56,17.88]
[1747732664816,0.28432314,167.59,167.52,18.64964886]
[1747732665010,0.28432314,167.59,167.53,17.88]
[1747732666409,20.8855472,167.58,167.53,17.88]
[1747732668123,0.28432314,167.57,167.52,26.0]
[1747732668306,20.88804009,167.56,167.53,17.88]
[1747732669623,0.28432314,167.55,167.47,1.6244]
[1747732669924,0.28432314,167.55,167.45,8.55472291]
[1747732669925,12.53325306,167.52,167.45,8.55472291]
[1747732670126,0.28432314,167.51,167.48,17.88]
[1747732671220,0.28432314,167.51,167.44,6.0995]
[1747732671520,0.28432314,167.51,167.45,43.88]
[1747732671722,5.97014925,167.5,167.45,43.88]
[1747732671912,5.97014925,167.5,167.46,18.64964886]
[1747732673427,5.97014925,167.5,167.47,3.39889126]
[1747732673651,5.96872388,167.54,167.48,18.64964886]
[1747732674125,20.89053359,167.54,167.48,18.64964886]
[1747732674295,0.28432314,167.53,167.47,3.39889126]
[1747732674500,12.8175762,167.53,167.47,3.39889126]
[1747732674799,12.8175762,167.53,167.45,43.88]
[1747732675000,0.28432314,167.53,167.45,43.88]
[1747732675720,20.89302769,167.52,167.46,3.39858015]
[1747732676716,20.89302769,167.52,167.47,3.39858015]
[1747732678229,20.89302769,167.52,167.45,43.88]
[1747732680129,20.89302769,167.52,167.46,3.39756376]
[1747732681238,20.89302769,167.52,167.45,43.88]
[1747732682836,0.28432314,167.51,167.45,43.88]
[1747732683210,0.28432314,167.51,167.47,26.0]
[1747732683814,0.18432314,167.51,167.47,26.0]
[1747732684241,20.89552238,167.5,167.47,26.0]
[1747732684939,5.97014925,167.5,167.47,26.0]
[1747732686439,6.25375962,167.52,167.47,26.0]
[1747732687012,5.96943648,167.52,167.47,26.0]
[1747732687332,5.96943648,167.52,167.49,26.0]
[1747732688130,5.96836765,167.55,167.49,26.0]
[1747732688327,6.25269079,167.55,167.49,26.0]
[1747732689429,21.17360991,167.55,167.49,26.0]
[1747732689644,33.70686297,167.55,167.49,26.0]
[1747732692638,21.17360991,167.55,167.49,26.0]
[1747732695240,5.96836765,167.55,167.5,26.0]
[1747732695543,14.91910256,167.58,167.51,17.9]
[1747732697533,20.88640176,167.58,167.51,17.9]
[1747732698843,20.88640176,167.58,167.52,18.64964886]
[1747732699339,5.9672992,167.58,167.52,18.64964886]
[1747732699934,50.66675464,167.67,167.58,18.64964886]
[1747732699935,5.96480763,167.65,167.58,18.64964886]
[1747732700142,5.96480763,167.65,167.61,26.0]
[1747732702048,5.96409614,167.67,167.61,26.0]
[1747732703254,20.87433649,167.67,167.61,26.0]
[1747732705255,33.40758955,167.67,167.61,26.0]
[1747732705557,12.8175762,167.66,167.55,82.8]
[1747732705757,0.28432314,167.62,167.56,17.88]
[1747732706457,0.28432314,167.62,167.56,43.88]
[1747732707279,5.96623113,167.61,167.56,43.88]
[1747732712361,5.96623113,167.61,167.56,17.88]
[1747732713475,5.96516344,167.64,167.59,18.64964886]
[1747732713642,14.91016614,167.68,167.6,1.5098]
[1747732713842,14.91016614,167.68,167.61,36.52964886]
[1747732714058,14.91016614,167.68,167.61,55.38964886]
[1747732715080,20.87390659,167.68,167.61,55.38964886]
[1747732715879,20.87390659,167.68,167.61,81.38964886]
[1747732716247,20.87390659,167.68,167.61,87.35580747]
[1747732716466,20.87390659,167.68,167.61,81.38964886]
[1747732716956,14.91016614,167.68,167.61,87.35583834]
[1747732718161,5.96338481,167.69,167.64,26.0]
[1747732719572,5.96338481,167.69,167.65,26.0]
[1747732719752,5.96338481,167.69,167.66,17.88]
[1747732719957,5.96196267,167.73,167.67,18.64964886]
[1747732720265,5.96196267,167.73,167.68,26.0]
[1747732720750,0.28432314,167.72,167.64,18.64964886]
[1747732720940,12.8175762,167.72,167.65,43.88]
[1747732722276,0.28432314,167.7,167.65,43.88]
[1747732724253,0.28432314,167.68,167.6,8.0592]
[1747732724455,20.87184685,167.69,167.63,26.0]
[1747732725549,0.28432314,167.68,167.61,55.38964886]
[1747732725752,0.28432314,167.68,167.64,26.0]
[1747732726474,5.96409614,167.67,167.64,26.0]
[1747732727366,20.87433649,167.67,167.64,26.0]
[1747732729670,20.87433649,167.67,167.61,36.74]
[1747732729869,20.87433649,167.67,167.62,26.0]
[1747732729870,0.28432314,167.66,167.62,26.0]
[1747732730071,0.28432314,167.66,167.63,17.88]
[1747732730977,20.87931753,167.63,167.61,17.88]
[1747732731763,0.28432314,167.62,167.59,17.88]
[1747732732062,12.8175762,167.62,167.57,17.88]
[1747732732468,0.28432314,167.62,167.57,17.88]
[1747732733480,20.88180895,167.61,167.57,17.88]
[1747732734272,5.96623113,167.61,167.58,26.0]
[1747732735469,20.87882176,167.64,167.58,26.0]
[1747732737464,20.88056317,167.62,167.55,1.5505]
[1747732737674,0.28432314,167.61,167.56,17.88]
[1747732739690,5.96658711,167.6,167.56,17.88]
[1747732739862,0.28432314,167.59,167.55,26.0]
[1747732740069,0.28432314,167.59,167.56,17.88]
[1747732741083,20.88305489,167.6,167.56,17.88]
[1747732741886,14.91646778,167.6,167.56,17.88]
[1747732746966,5.96623113,167.61,167.59,26.0]
[1747732748469,20.87992569,167.63,167.56,17.88]
[1747732749690,0.28432314,167.62,167.57,3.38147055]
[1747732749994,0.28432314,167.62,167.58,17.88]
[1747732750994,20.88180895,167.61,167.58,17.88]
[1747732753093,14.91557782,167.61,167.58,17.88]
[1747732753892,0.28432314,167.62,167.58,17.88]
[1747732754276,0.28432314,167.62,167.5,5.97007493]
[1747732754277,0.28432314,167.59,167.51,18.84]
[1747732754475,12.8175762,167.59,167.51,18.84]
[1747732754699,0.28432314,167.57,167.52,17.88]
[1747732754916,0.28432314,167.57,167.52,21.2654756]
[1747732755084,20.88804009,167.56,167.52,3.3854756]
[1747732756001,20.88804009,167.56,167.51,36.72]
[1747732757781,20.88804009,167.56,167.51,18.84]
[1747732758105,20.88804009,167.56,167.51,36.72]
[1747732760883,5.96801145,167.56,167.51,36.72]
[1747732761090,5.96801145,167.56,167.52,3.3838233]
[1747732761910,14.91923685,167.57,167.52,3.3838233]
[1747732762105,0.28432314,167.56,167.52,3.3838233]
[1747732762484,0.28432314,167.56,167.51,36.72]
[1747732763490,5.9672992,167.58,167.51,62.72]
[1747732763722,5.9672992,167.58,167.52,18.64964886]
[1747732765799,5.9672992,167.58,167.53,3.38445635]
[1747732766312,20.8855472,167.58,167.53,3.38445635]
[1747732766807,20.8855472,167.58,167.52,18.64964886]
[1747732769305,20.8855472,167.58,167.51,62.72]
[1747732769306,0.28432314,167.57,167.51,62.72]
[1747732769514,0.28432314,167.57,167.52,17.9]
[1747732769693,12.8175762,167.57,167.48,90.9649]
[1747732769893,12.8175762,167.57,167.48,1.6267]
[1747732769894,12.8175762,167.55,167.48,1.6267]
[1747732770095,137.0,167.57,167.49,21.28936945]
[1747732770096,0.28432314,167.52,167.49,21.28936945]
[1747732771711,5.96979284,167.51,167.49,21.28936945]
[1747732771903,5.96979284,167.51,167.49,3.38936945]
[1747732772214,20.89427496,167.51,167.47,36.76]
[1747732775350,0.28432314,167.5,167.47,18.86]
[1747732775643,0.28432314,167.5,167.46,17.9]
[1747732776040,0.28432314,167.5,167.45,26.0]
[1747732776239,20.89926553,167.47,167.42,18.86]
[1747732776537,0.28432314,167.46,167.43,17.9]
[1747732776736,0.28432314,167.46,167.4,25.6105]
[1747732776937,0.28432314,167.44,167.37,27.41472291]
[1747732777233,12.8175762,167.44,167.37,8.55472291]
[1747732777424,12.8175762,167.44,167.38,17.9]
[1747732778418,20.90425849,167.43,167.38,17.9]
[1747732778817,5.97264528,167.43,167.38,43.9]
[1747732782247,20.90425849,167.43,167.38,43.9]
[1747732784534,20.90425849,167.43,167.38,26.0]
[1747732784729,20.90425849,167.43,167.39,17.9]
[1747732785440,0.28432314,167.42,167.38,26.0]
[1747732785641,0.28432314,167.42,167.39,17.9]
[1747732785853,0.28432314,167.42,167.38,26.0]
[1747732786053,0.28432314,167.42,167.39,17.9]
[1747732786440,0.28432314,167.42,167.35,1.5747]
[1747732786750,5.97335881,167.41,167.37,26.0]
[1747732787255,0.28432314,167.4,167.37,17.9]
[1747732787974,0.28432314,167.4,167.32,18.64964886]
[1747732788137,12.8175762,167.4,167.33,17.9]
[1747732788343,0.28432314,167.4,167.33,43.9]
[1747732788531,0.28432314,167.4,167.33,26.0]
[1747732788731,5.97407252,167.39,167.34,17.9]
[1747732790246,5.9747864,167.37,167.34,43.9]
[1747732790757,5.9747864,167.37,167.32,26.0]
[1747732790947,5.9747864,167.37,167.33,17.9]
[1747732794760,5.9747864,167.37,167.34,26.0]
[1747732799574,5.97335881,167.41,167.34,31.97577324]
[1747732799864,5.97335881,167.41,167.35,44.64964886]
[1747732800260,5.97228858,167.44,167.38,26.0]
[1747732800458,5.97228858,167.44,167.39,17.9]
[1747732802772,0.28432314,167.43,167.36,27.6]
[1747732802978,0.28432314,167.43,167.39,17.92]
[1747732803174,12.53325306,167.42,167.38,17.92]
[1747732803483,12.53325306,167.42,167.37,17.92]
[1747732803665,0.28432314,167.4,167.37,17.92]
[1747732805679,5.97407252,167.39,167.37,17.92]
[1747732808580,20.90925383,167.39,167.34,62.76]
[1747732814008,14.93046874,167.45,167.37,26.0]
[1747732814296,5.9715753,167.46,167.39,26.0]
[1747732814593,5.9715753,167.46,167.4,17.92]
[1747732815182,14.92787469,167.48,167.4,17.92]
[1747732816682,20.89873688,167.48,167.4,17.92]
[1747732816877,0.28432314,167.47,167.4,17.92]
[1747732817795,5.9715753,167.46,167.4,17.92]
[1747732817984,5.9715753,167.46,167.41,3.38882854]
[1747732819282,5.9715753,167.46,167.42,3.38882854]
[1747732820386,5.9715753,167.46,167.41,3.38882854]
[1747732821601,5.9705057,167.49,167.42,18.64964886]
[1747732821775,5.9705057,167.49,167.42,44.64964886]
[1747732822692,5.9705057,167.49,167.43,3.38882854]
[1747732823586,5.9705057,167.49,167.45,26.0]
[1747732823896,5.9705057,167.49,167.46,17.9]
[1747732829109,0.28432314,167.48,167.39,84.4513]
[1747732829296,12.8175762,167.48,167.41,17.9]
[1747732830416,20.89926553,167.47,167.41,43.9]
[1747732831009,5.97121872,167.47,167.42,18.64964886]
[1747732831207,5.97121872,167.47,167.42,44.64964886]
[1747732832507,14.92729018,167.48,167.42,44.64964886]
[1747732833205,14.92729018,167.48,167.42,26.0]
[1747732833497,0.28432314,167.47,167.43,17.9]
[1747732834515,20.90051355,167.46,167.43,17.9]
[1747732836412,12.53325306,167.44,167.39,19.0]
[1747732836592,12.8175762,167.42,167.38,17.9]
[1747732836910,12.8175762,167.42,167.37,17.9]
[1747732838699,0.28432314,167.4,167.37,17.9]
[1747732839788,20.90675585,167.41,167.39,26.0]
[1747732840106,5.97335881,167.41,167.39,26.0]
[1747732840888,63.58506111,167.43,167.36,26.0]
[1747732841109,63.58506111,167.43,167.37,17.9]
[1747732841910,0.28432314,167.41,167.37,17.9]
[1747732842213,14.4223762,167.41,167.33,18.98]
[1747732842415,0.28432314,167.38,167.33,18.98]
[1747732842615,0.28432314,167.38,167.34,17.9]
[1747732842914,20.9117524,167.37,167.34,17.9]
[1747732843491,5.9747864,167.37,167.34,17.9]
[1747732844989,5.9747864,167.37,167.28,30.26214216]
[1747732844990,0.28432314,167.37,167.35,17.9]
[1747732845814,0.28432314,167.37,167.32,26.0]
[1747732846014,0.28432314,167.37,167.33,17.9]
[1747732846331,0.28432314,167.37,167.32,17.9]
[1747732846505,12.8175762,167.37,167.32,17.9]
[1747732847018,20.9130019,167.36,167.32,17.9]
[1747732847424,0.28432314,167.35,167.3,19.56273037]
[1747732847621,0.28432314,167.35,167.3,37.46273037]
[1747732849121,5.97585753,167.34,167.3,37.46273037]
[1747732855035,20.9130019,167.36,167.3,37.46273037]
[1747732858431,20.9130019,167.36,167.31,18.64964886]
[1747732858637,5.9751434,167.36,167.31,18.64964886]
[1747732859339,14.93718913,167.37,167.31,18.64964886]
[1747732860322,14.93718913,167.37,167.3,37.46273037]
[1747732860528,0.28432314,167.36,167.3,37.46273037]
[1747732861418,5.97550044,167.35,167.3,37.46273037]
[1747732861618,20.91425156,167.35,167.3,37.46273037]
[1747732863338,14.93686878,167.38,167.31,18.64964886]
[1747732864120,14.93686878,167.38,167.34,26.0]
[1747732864345,14.93686878,167.38,167.35,17.92]
[1747732865025,14.93686878,167.38,167.34,26.0]
[1747732865026,0.28432314,167.37,167.34,17.92]
[1747732865651,5.9751434,167.36,167.34,17.92]
[1747732874352,0.28432314,167.35,167.31,17.92]
[1747732874753,0.28432314,167.33,167.31,17.92]
[1747732875256,20.91550136,167.34,167.31,17.92]
[1747732876065,5.97585753,167.34,167.31,17.92]
[1747732876958,5.9751434,167.36,167.31,17.92]
[1747732878150,20.9130019,167.36,167.31,17.92]
[1747732878530,20.9130019,167.36,167.3,0.58273037]
[1747732878740,20.9130019,167.36,167.32,17.92]
[1747732879229,14.9378585,167.36,167.32,17.92]
[1747732881052,14.9378585,167.36,167.33,3.40944402]
[1747732881360,20.9130019,167.36,167.33,3.40944402]
[1747732882353,0.28432314,167.35,167.33,3.40944402]
[1747732882541,0.28432314,167.35,167.31,43.92]
[1747732883442,5.97585753,167.34,167.32,3.41066147]
[1747732884354,5.97585753,167.34,167.33,3.41066147]
[1747732885559,5.97585753,167.34,167.32,3.41066147]
[1747732887460,0.28432314,167.33,167.32,3.41066147]
[1747732887660,12.8175762,167.33,167.32,3.41066147]
[1747732888142,12.8175762,167.33,167.3,0.58273037]
[1747732888342,12.53325306,167.32,167.3,0.58273037]
[1747732889140,5.97692905,167.31,167.3,0.58273037]
[1747732889358,18.51018211,167.31,167.3,0.58273037]
[1747732889850,5.97692905,167.31,167.3,0.58273037]
[1747732891162,5.97657183,167.32,167.3,0.58273037]
[1747732891387,12.8175762,167.31,167.3,0.58273037]
[1747732891574,38.8175762,167.31,167.3,0.58273037]
[1747732893239,44.79450525,167.31,167.3,0.58273037]
[1747732895465,37.44415411,167.31,167.3,0.58273037]
[1747732895771,61.61030717,167.31,167.3,0.58273037]
[1747732895965,39.07705411,167.31,167.3,0.58273037]
[1747732896364,113.78866726,167.31,167.2,17.92]
[1747732896569,0.28432314,167.26,167.2,17.92]
[1747732896779,12.8175762,167.26,167.2,17.92]
[1747732897169,20.92550519,167.26,167.2,17.92]
[1747732897779,33.45875825,167.26,167.2,17.92]
[1747732899186,20.92550519,167.26,167.2,17.92]
[1747732906581,63.3523371,167.26,167.2,17.92]
[1747732907074,50.81908404,167.26,167.2,17.92]
[1747732907274,50.81908404,167.26,167.18,26.0]
[1747732907457,50.81908404,167.26,167.2,17.92]
[1747732907660,63.3523371,167.26,167.2,17.92]
[1747732908378,0.28432314,167.25,167.2,17.92]
[1747732908576,12.8175762,167.25,167.2,17.92]
[1747732909968,20.92800764,167.24,167.2,17.92]
[1747732912185,14.94857689,167.24,167.2,17.92]
[1747732913057,5.97871577,167.26,167.2,17.92]
[1747732913581,20.92550519,167.26,167.2,17.92]
[1747732914084,20.92550519,167.26,167.2,19.5311]
[1747732914286,5.97871577,167.26,167.23,26.0]
[1747732915376,5.97871577,167.26,167.23,45.2]
[1747732915986,20.92247193,167.29,167.23,45.2]
[1747732916988,5.97764361,167.29,167.24,18.64964886]
[1747732918079,20.91865263,167.32,167.24,18.64964886]
[1747732919104,20.91865263,167.32,167.23,45.2]
[1747732919611,20.91865263,167.32,167.24,18.64964886]
[1747732920401,14.9420808,167.32,167.25,8.2773]
[1747732920603,5.97621466,167.33,167.28,26.0]
[1747732921305,5.97621466,167.33,167.3,26.0]
[1747732922289,50.78265024,167.38,167.3,26.0]
[1747732922682,20.91050304,167.38,167.31,20.15824886]
[1747732922893,20.91050304,167.38,167.32,17.92]
[1747732924410,14.9360736,167.38,167.32,17.92]
[1747732930321,12.53325306,167.37,167.33,17.92]
[1747732930824,27.46932666,167.38,167.33,17.92]
[1747732931998,63.3159033,167.38,167.33,17.92]
[1747732932616,63.3159033,167.38,167.32,26.0]
[1747732933929,50.78265024,167.38,167.32,26.0]
[1747732935524,20.91050304,167.38,167.32,26.0]
[1747732937430,14.9360736,167.38,167.32,26.0]
[1747732940425,12.53325306,167.4,167.32,26.0]
[1747732940625,33.44000891,167.41,167.32,26.0]
[1747732941633,63.306803,167.41,167.32,26.0]
[1747732941830,12.53325306,167.4,167.32,26.0]
[1747732942527,63.306803,167.41,167.32,26.0]
[1747732943430,20.90675585,167.41,167.36,26.0]
[1747732943726,20.90675585,167.41,167.37,17.92]
[1747732944437,14.93339704,167.41,167.37,17.92]
[1747732944607,5.97264528,167.43,167.38,18.64964886]
[1747732944938,5.97264528,167.43,167.4,18.64964886]
[1747732946034,5.97264528,167.43,167.42,26.0]
[1747732946333,5.97121872,167.47,167.42,44.64964886]
[1747732946511,14.9279007,167.48,167.43,17.92]
[1747732947233,5.9705057,167.49,167.44,18.64964886]
[1747732947423,5.9705057,167.49,167.46,18.64964886]
[1747732947727,20.8855472,167.58,167.49,26.0]
[1747732947935,36.52787308,167.58,167.5,17.92]
[1747732948104,33.41880026,167.58,167.5,17.92]
[1747732948301,20.8855472,167.58,167.5,17.92]
[1747732948523,20.8855472,167.58,167.51,18.64964886]
[1747732949813,20.8855472,167.58,167.54,26.0]
[1747732950135,20.8855472,167.58,167.55,18.64964886]
[1747732950430,5.9672992,167.58,167.56,17.92]
[1747732950606,14.91617672,167.61,167.56,17.92]
[1747732951208,14.91617672,167.61,167.57,18.64964886]
[1747732951637,5.96587519,167.62,167.57,44.64964886]
[1747732951836,5.96587519,167.62,167.57,50.90604886]
[1747732952135,20.88056317,167.62,167.57,50.90604886]
[1747732952638,20.87682671,167.65,167.57,50.90604886]
[1747732956113,63.23411794,167.65,167.57,44.64964886]
[1747732956623,12.53325306,167.64,167.57,44.64964886]
[1747732956821,12.53325306,167.63,167.58,17.9]
[1747732957135,20.88056317,167.62,167.58,17.9]
[1747732958723,5.96587519,167.62,167.61,44.64964886]
[1747732959115,20.87184685,167.69,167.62,18.64964886]
[1747732959637,33.40509991,167.69,167.62,18.64964886]
[1747732960027,63.22202399,167.69,167.62,18.64964886]
[1747732961542,50.68877093,167.69,167.63,17.9]
[1747732962245,57.25863918,167.69,167.63,17.9]
[1747732963342,63.22202399,167.69,167.63,17.9]
[1747732965838,20.87184685,167.69,167.63,17.9]
[1747732966163,20.87184685,167.69,167.64,44.64964886]
[1747732966320,20.87184685,167.69,167.66,18.64964886]
[1747732966818,20.87184685,167.69,167.65,19.26]
[1747732967737,14.90846204,167.69,167.65,19.26]
[1747732969527,27.4417151,167.69,167.64,26.0]
[1747732969736,63.22202399,167.69,167.63,17.9]
[1747732971954,63.22202399,167.69,167.63,17.88]
[1747732972938,12.53325306,167.68,167.63,17.88]
[1747732973947,20.87433649,167.67,167.63,17.88]
[1747732974141,12.53325306,167.66,167.6,19.26]
[1747732974342,12.53325306,167.65,167.61,17.88]
[1747732975140,12.53325306,167.66,167.61,17.88]
[1747732976746,20.87682671,167.65,167.61,17.88]
[1747732978142,14.91201908,167.65,167.61,17.88]
[1747732980159,20.87682671,167.65,167.61,17.88]
[1747732983758,12.53325306,167.62,167.53,18.64964886]
[1747732983937,12.53325306,167.61,167.55,26.0]
[1747732984756,50.71599045,167.6,167.56,17.88]
[1747732987454,12.53325306,167.58,167.55,17.88]
[1747732987951,12.53325306,167.58,167.53,17.88]
[1747732988254,12.53325306,167.56,167.51,17.88]
[1747732989140,20.88804009,167.56,167.51,17.88]
[1747732989332,5.96801145,167.56,167.51,43.88]
[1747732989642,5.96801145,167.56,167.52,18.64964886]
[1747732990465,5.96801145,167.56,167.53,3.38014389]
[1747732990966,14.91956302,167.57,167.53,3.38014389]
[1747732992261,14.91956302,167.57,167.54,3.38014389]
[1747732993463,14.91956302,167.57,167.53,3.38014389]
[1747732998642,14.91956302,167.57,167.52,18.64964886]
[1747733000953,14.91956302,167.57,167.51,43.88]
[1747733002662,14.91956302,167.57,167.51,26.0]
[1747733002866,14.91956302,167.57,167.52,17.9]
[1747733004002,20.88721832,167.57,167.51,19.28675347]
[1747733004267,63.25874792,167.57,167.51,19.28675347]
[1747733004850,12.53325306,167.56,167.51,19.28675347]
[1747733005260,12.53325306,167.56,167.51,37.18675347]
[1747733005459,20.88928677,167.55,167.51,37.18675347]
[1747733005957,33.42253983,167.55,167.51,17.9]
[1747733007369,20.88928677,167.55,167.51,17.9]
[1747733009672,20.8855472,167.58,167.51,17.9]
[1747733009861,33.41880026,167.58,167.51,17.9]
[1747733013857,20.8855472,167.58,167.51,17.9]
[1747733024280,20.8855472,167.58,167.52,3.38626261]
[1747733025883,20.8855472,167.58,167.51,17.9]
[1747733026061,20.8855472,167.58,167.52,18.64964886]
[1747733026260,5.9672992,167.58,167.52,18.64964886]
[1747733027062,5.9672992,167.58,167.54,18.64964886]
[1747733027261,20.88242737,167.61,167.54,18.64964886]
[1747733028592,20.88242737,167.61,167.55,3.38756402]
[1747733030860,14.91619624,167.61,167.55,3.38756402]
[1747733036479,27.4494493,167.61,167.55,21.26756402]
[1747733037794,33.41568043,167.61,167.55,21.26756402]
[1747733038094,20.88242737,167.61,167.55,17.88]